fUSD/lending_fUSD_20250521
["ID","MTS","AMOUNT","RATE_DAILY","PERIOD"]
[361833022,1747827051219,-420.0,0.00032876,5]
[361833023,1747827051229,-420.0,0.00032876,5]
[361833024,1747827051238,-487.80062928,0.00032876,5]
[361833025,1747827051247,-420.0,0.00032876,5]
[361833026,1747827051257,-420.0,0.00032876,5]
[361833027,1747827051277,-4059.65,0.00032876,5]
[361833028,1747827051288,-420.0,0.00032876,5]
[361833029,1747827051298,-561.7,0.00032876,5]
[361833030,1747827051307,-420.0,0.00032876,5]
[361833031,1747827051317,-420.0,0.00032876,5]
[361833032,1747827051326,-309.91153302,0.00032876,5]
[361833033,1747827051336,-420.0,0.00032876,5]
[361833034,1747827051346,-420.0,0.00032876,5]
[361833035,1747827051355,-420.0,0.00032876,5]
[361833036,1747827051364,-420.0,0.00032876,5]
[361833037,1747827051374,-207.71482406,0.00032876,5]
[361833038,1747827051384,-420.0,0.00032876,5]
[361833039,1747827051393,-420.0,0.00032876,5]
[361833040,1747827051403,-420.0,0.00032876,5]
[361833041,1747827051413,-6775.14,0.00032876,5]
[361833042,1747827051422,-420.0,0.00032876,2]
[361833043,1747827051432,-420.0,0.00032876,5]
[361833044,1747827051442,-420.0,0.00032876,5]
[361833045,1747827051451,-310.80069139,0.00032876,5]
[361833046,1747827051461,-420.0,0.00032876,5]
[361833047,1747827051470,-3582.79,0.00032876,5]
[361833048,1747827051480,-420.0,0.00032876,2]
[361833049,1747827051489,-477.4,0.00032876,5]
[361833050,1747827051499,-420.0,0.00032876,5]
[361833051,1747827051508,-420.0,0.00032876,5]
[361833052,1747827051517,-420.0,0.00032876,5]
[361833053,1747827051527,-420.0,0.00032876,5]
[361833054,1747827051536,-567.49,0.00032876,5]
[361833055,1747827051546,-420.0,0.00032876,5]
[361833056,1747827051556,-1722.63,0.00032876,5]
[361833057,1747827051565,-420.0,0.00032876,5]
[361833058,1747827051575,-1143.17,0.00032876,5]
[361833059,1747827051584,-1654.14,0.00032876,5]
[361833060,1747827051594,-420.0,0.00032876,5]
[361833061,1747827051603,-471.02,0.00032876,5]
[361833062,1747827051613,-933.58,0.00032876,5]
[361833063,1747827051623,-2021.44,0.00032876,5]
[361833064,1747827051633,-420.0,0.00032876,5]
[361833065,1747827051644,-420.0,0.00032876,5]
[361833066,1747827051655,-420.0,0.00032876,5]
[361833067,1747827051664,-4350.06,0.00032876,5]
[361833068,1747827051674,-749.3,0.00032876,5]
[361833069,1747827051684,-814.46,0.00032876,5]
[361833070,1747827051694,-420.0,0.00032876,5]
[361833071,1747827051714,-801.9,0.00032876,5]
[361833072,1747827051724,-201.65,0.00032876,5]
[361833073,1747827051734,-587.68,0.00032876,5]
[361833074,1747827051745,-2767.02,0.00032876,5]
[361833075,1747827051755,-420.0,0.00032876,5]
[361833076,1747827051765,-420.0,0.00032876,5]
[361833077,1747827051775,-287.81450931,0.00032876,5]
[361833078,1747827051787,-3600.0,0.000329,12]
[361833079,1747827051797,-1440.78947445,0.00033009,2]
[361833080,1747827051807,-719.04747942,0.0003305,2]
[361833081,1747827051818,-50074.19560165,0.000331,2]
[361833082,1747827051828,-400.0,0.00033149,5]
[361833083,1747827051838,-400.0,0.00033149,5]
[361833084,1747827051848,-400.0,0.00033149,5]
[361833085,1747827051859,-400.0,0.00033149,5]
[361833086,1747827052119,-316.1,0.00033149,5]
[361833087,1747827052130,-200.0,0.00033149,2]
[361833088,1747827052140,-200.0,0.00033149,2]
[361833089,1747827052150,-500.0,0.00033149,5]
[361833090,1747827052160,-500.0,0.00033149,5]
[361833091,1747827052172,-978.514542,0.0003315,5]
[361833092,1747827052182,-420.0,0.0003315,5]
[361833093,1747827052192,-181.86787702,0.0003315,5]
[361833094,1747827052203,-420.0,0.0003315,5]
[361833095,1747827052213,-420.0,0.0003315,5]
[361833096,1747827052223,-420.0,0.0003315,5]
[361833097,1747827052233,-420.0,0.0003315,5]
[361833098,1747827052243,-420.0,0.0003315,5]
[361833099,1747827052253,-289.63819875,0.0003315,5]
[361833100,1747827052263,-420.0,0.0003315,5]
[361833101,1747827052273,-852.08,0.0003315,5]
[361833102,1747827052283,-370.09163345,0.0003315,5]
[361833103,1747827052293,-380.13341903,0.0003315,5]
[361833104,1747827052304,-838.29,0.0003315,5]
[361833105,1747827052315,-300.27505191,0.0003315,5]
[361833106,1747827052325,-420.0,0.0003315,5]
[361833107,1747827052335,-163.72634433,0.0003315,5]
[361833108,1747827052346,-756.34,0.0003315,5]
[361833109,1747827052356,-456.81,0.0003315,5]
[361833110,1747827052367,-420.0,0.0003315,5]
[361833111,1747827052377,-189.27339179,0.0003315,5]
[361833112,1747827052387,-480.11,0.0003315,5]
[361833113,1747827052397,-420.0,0.0003315,5]
[361833114,1747827052407,-420.0,0.0003315,5]
[361833115,1747827052418,-803.54,0.0003315,5]
[361833116,1747827052427,-1218.18,0.0003315,5]
[361833117,1747827052438,-942.88,0.0003315,5]
[361833118,1747827052448,-797.13,0.0003315,5]
[361833119,1747827052459,-420.0,0.0003315,5]
[361833120,1747827052469,-420.0,0.0003315,5]
[361833121,1747827052480,-1263.34,0.0003315,5]
[361833122,1747827052490,-420.0,0.0003315,5]
[361833123,1747827052500,-420.0,0.0003315,5]
[361833124,1747827052510,-599.61,0.0003315,5]
[361833125,1747827052520,-420.0,0.0003315,5]
[361833126,1747827052530,-420.0,0.0003315,5]
[361833127,1747827052544,-1887.18,0.0003315,5]
[361833128,1747827052554,-420.6292156,0.0003315,5]
[361833129,1747827052565,-410.24043408,0.0003315,5]
[361833130,1747827052575,-537.6,0.0003315,5]
[361833131,1747827052585,-420.0,0.0003315,5]
[361833132,1747827052596,-420.0,0.0003315,5]
[361833133,1747827052606,-420.0,0.0003315,5]
[361833134,1747827052616,-420.0,0.0003315,5]
[361833135,1747827052626,-420.0,0.0003315,5]
[361833136,1747827052635,-420.0,0.0003315,5]
[361833137,1747827052645,-420.0,0.0003315,5]
[361833138,1747827052655,-995.6,0.0003315,5]
[361833139,1747827052665,-334.31835191,0.0003315,5]
[361833140,1747827052675,-420.0,0.0003315,5]
[361833141,1747827052686,-420.0,0.0003315,5]
[361833142,1747827052696,-330.72019958,0.0003315,5]
[361833143,1747827052710,-161.45789457,0.0003315,5]
[361833144,1747827052720,-420.0,0.0003315,5]
[361833145,1747827052730,-420.0,0.0003315,5]
[361833146,1747827052741,-692.22,0.0003315,5]
[361833147,1747827052752,-420.0,0.0003315,5]
[361833148,1747827052762,-420.0,0.0003315,5]
[361833149,1747827052774,-584.19,0.0003315,5]
[361833150,1747827052785,-420.0,0.0003315,5]
[361833151,1747827052795,-420.0,0.0003315,5]
[361833152,1747827052806,-420.0,0.0003315,5]
[361833153,1747827052816,-847.72,0.0003315,5]
[361833154,1747827052827,-674.03,0.0003315,5]
[361833155,1747827052836,-420.0,0.0003315,5]
[361833156,1747827052846,-627.96,0.0003315,5]
[361833157,1747827052856,-420.0,0.0003315,5]
[361833158,1747827052869,-420.0,0.0003315,5]
[361833159,1747827052879,-524.74,0.0003315,5]
[361833160,1747827052889,-420.0,0.0003315,5]
[361833161,1747827052900,-420.0,0.0003315,5]
[361833162,1747827052911,-420.0,0.0003315,5]
[361833163,1747827052921,-420.0,0.0003315,5]
[361833164,1747827052931,-1128.54,0.0003315,5]
[361833165,1747827052942,-420.0,0.0003315,5]
[361833166,1747827052952,-814.71,0.0003315,5]
[361833167,1747827052962,-420.0,0.0003315,5]
[361833168,1747827052984,-420.0,0.0003315,5]
[361833169,1747827052996,-420.0,0.0003315,5]
[361833170,1747827053007,-420.0,0.0003315,5]
[361833171,1747827053018,-420.0,0.0003315,5]
[361833172,1747827053028,-1370.32,0.0003315,5]
[361833173,1747827053039,-420.0,0.0003315,5]
[361833174,1747827053050,-420.0,0.0003315,5]
[361833175,1747827053061,-420.0,0.0003315,5]
[361833176,1747827053072,-154.25491773,0.0003315,5]
[361833177,1747827053082,-420.0,0.0003315,5]
[361833178,1747827053093,-420.0,0.0003315,5]
[361833179,1747827053104,-574.94,0.0003315,5]
[361833180,1747827053115,-420.0,0.0003315,5]
[361833181,1747827053125,-455.14,0.0003315,5]
[361833182,1747827053136,-420.0,0.0003315,5]
[361833183,1747827053147,-1337.7,0.0003315,5]
[361833184,1747827053158,-478.34,0.0003315,5]
[361833185,1747827053168,-420.0,0.0003315,5]
[361833186,1747827053179,-504.02,0.0003315,5]
[361833187,1747827053190,-420.0,0.0003315,5]
[361833188,1747827053201,-565.8,0.0003315,5]
[361833189,1747827053212,-728.55,0.0003315,5]
[361833190,1747827053222,-420.0,0.0003315,5]
[361833191,1747827053235,-420.0,0.0003315,5]
[361833192,1747827053245,-732.9,0.0003315,5]
[361833193,1747827053256,-420.0,0.0003315,5]
[361833194,1747827053266,-1165.23,0.0003315,5]
[361833195,1747827053276,-1378.94,0.0003315,5]
[361833196,1747827053287,-420.0,0.0003315,5]
[361833197,1747827053297,-2721.26,0.0003315,5]
[361833198,1747827053308,-1472.56,0.0003315,5]
[361833199,1747827053319,-420.0,0.0003315,5]
[361833200,1747827053330,-420.0,0.0003315,5]
[361833201,1747827053341,-815.36,0.0003315,5]
[361833202,1747827053352,-3421.67,0.0003315,5]
[361833203,1747827053363,-420.0,0.0003315,5]
[361833204,1747827053374,-420.0,0.0003315,5]
[361833205,1747827053384,-420.0,0.0003315,5]
[361833206,1747827053401,-420.0,0.0003315,5]
[361833207,1747827053412,-420.0,0.0003315,5]
[361833208,1747827053423,-420.0,0.0003315,5]
[361833209,1747827053435,-2581.6,0.0003315,5]
[361833210,1747827053446,-3315.32,0.0003315,5]
[361833211,1747827053457,-420.0,0.0003315,5]
[361833212,1747827053468,-1137.48,0.0003315,5]
[361833213,1747827053479,-381.90853006,0.0003315,5]
[361833214,1747827053490,-1399.99,0.0003315,5]
[361833215,1747827053500,-2580.06,0.0003315,5]
[361833216,1747827053511,-594.98,0.0003315,5]
[361833217,1747827053522,-1980.3,0.0003315,5]
[361833218,1747827053533,-420.0,0.0003315,5]
[361833219,1747827053543,-2964.03,0.0003315,5]
[361833220,1747827053554,-420.0,0.0003315,5]
[361833221,1747827053565,-420.0,0.0003315,5]
[361833222,1747827053576,-461.83,0.0003315,5]
[361833223,1747827053587,-1561.77,0.0003315,5]
[361833224,1747827053597,-419.4836323,0.0003315,5]
[361833225,1747827053608,-420.0,0.0003315,5]
[361833226,1747827053618,-1769.8,0.0003315,5]
[361833227,1747827053629,-950.46,0.0003315,5]
[361833228,1747827053640,-420.0,0.0003315,5]
[361833229,1747827053650,-498.42,0.0003315,5]
[361833230,1747827053660,-1036.55,0.0003315,5]
[361833231,1747827053671,-934.39,0.0003315,5]
[361833232,1747827053681,-3529.11,0.0003315,5]
[361833233,1747827053692,-1927.57,0.0003315,5]
[361833234,1747827053708,-420.0,0.0003315,5]
[361833235,1747827053719,-420.0,0.0003315,5]
[361833236,1747827053729,-161.94434632,0.0003315,5]
[361833237,1747827053739,-420.0,0.0003315,5]
[361833238,1747827053750,-1266.55,0.0003315,5]
[361833239,1747827053761,-2836.71,0.0003315,5]
[361833240,1747827053772,-1455.7,0.0003315,5]
[361833241,1747827053783,-420.0,0.0003315,5]
[361833242,1747827053795,-1060.83,0.0003315,5]
[361833243,1747827053805,-760.46,0.0003315,5]
[361833244,1747827053816,-358.16540137,0.0003315,5]
[361833245,1747827053826,-319.21,0.0003315,5]
[361833246,1747827053836,-420.0,0.0003315,5]
[361833247,1747827053847,-6149.49,0.0003315,5]
[361833248,1747827053857,-508.71708487,0.0003315,5]
[361833249,1747827053868,-1097.74,0.0003315,5]
[361833250,1747827053879,-879.61,0.0003315,5]
[361833251,1747827053889,-420.0,0.0003315,5]
[361833252,1747827053900,-1674.91,0.0003315,5]
[361833253,1747827053910,-1406.72,0.0003315,5]
[361833254,1747827053921,-867.9,0.0003315,5]
[361833255,1747827053931,-420.0,0.0003315,5]
[361833256,1747827053942,-526.8,0.0003315,5]
[361833257,1747827053952,-420.0,0.0003315,5]
[361833258,1747827053962,-549.07587455,0.0003315,5]
[361833259,1747827053973,-338.74335778,0.0003315,5]
[361833260,1747827053984,-420.0,0.0003315,5]
[361833261,1747827053994,-950.88,0.0003315,5]
[361833262,1747827054004,-420.0,0.0003315,5]
[361833263,1747827054014,-420.0,0.0003315,5]
[361833264,1747827054024,-882.4,0.0003315,5]
[361833265,1747827054034,-420.0,0.0003315,5]
[361833266,1747827054043,-326.69,0.0003315,5]
[361833267,1747827054053,-420.0,0.0003315,5]
[361833268,1747827054064,-800.16,0.0003315,5]
[361833269,1747827054074,-532.99524869,0.0003315,5]
[361833270,1747827054084,-420.0,0.0003315,5]
[361833271,1747827054096,-420.0,0.0003315,5]
[361833272,1747827054106,-504.22,0.0003315,5]
[361833273,1747827054116,-420.0,0.0003315,5]
[361833274,1747827054127,-1081.43,0.0003315,5]
[361833275,1747827054137,-460.09,0.0003315,5]
[361833276,1747827054148,-420.0,0.0003315,5]
[361833277,1747827054158,-3043.74,0.0003315,5]
[361833278,1747827054168,-420.0,0.0003315,5]
[361833279,1747827054178,-420.0,0.0003315,5]
[361833280,1747827054189,-373.0,0.0003315,5]
[361833281,1747827054199,-501.13695475,0.0003315,5]
[361833282,1747827054208,-420.0,0.0003315,5]
[361833283,1747827054219,-3632.54,0.0003315,5]
[361833284,1747827054229,-1270.86,0.0003315,5]
[361833285,1747827054239,-1956.56,0.0003315,5]
[361833286,1747827054250,-420.0,0.0003315,5]
[361833287,1747827054259,-420.0,0.0003315,5]
[361833288,1747827054269,-930.2,0.0003315,5]
[361833289,1747827054280,-420.0,0.0003315,5]
[361833290,1747827054290,-420.0,0.0003315,5]
[361833291,1747827054300,-420.0,0.0003315,5]
[361833292,1747827054310,-420.0,0.0003315,5]
[361833293,1747827054320,-420.0,0.0003315,5]
[361833294,1747827054329,-420.0,0.0003315,5]
[361833295,1747827054339,-498.13131976,0.0003315,5]
[361833296,1747827054349,-420.0,0.0003315,5]
[361833297,1747827054359,-420.0,0.0003315,5]
[361833298,1747827054370,-2005.74,0.0003315,5]
[361833299,1747827054381,-420.0,0.0003315,5]
[361833300,1747827054391,-420.0,0.0003315,5]
[361833301,1747827054402,-420.0,0.0003315,5]
[361833302,1747827054413,-420.0,0.0003315,5]
[361833303,1747827054423,-420.0,0.0003315,5]
[361833304,1747827054434,-420.0,0.0003315,5]
[361833305,1747827054444,-420.0,0.0003315,5]
[361833306,1747827054454,-420.0,0.0003315,5]
[361833307,1747827054464,-420.0,0.0003315,5]
[361833308,1747827054474,-1347.5,0.0003315,5]
[361833309,1747827054484,-420.0,0.0003315,5]
[361833310,1747827054494,-231.82570733,0.0003315,5]
[361833311,1747827054890,-420.0,0.0003315,5]
[361833312,1747827054901,-157.39222913,0.0003315,5]
[361833313,1747827054911,-420.0,0.0003315,5]
[361833314,1747827054921,-420.0,0.0003315,5]
[361833315,1747827054931,-607.7,0.0003315,5]
[361833316,1747827054941,-224.05579805,0.0003315,5]
[361833317,1747827054951,-1108.97,0.0003315,5]
[361833318,1747827054962,-602.41,0.0003315,5]
[361833319,1747827054971,-420.0,0.0003315,5]
[361833320,1747827054981,-420.0,0.0003315,5]
[361833321,1747827054991,-420.0,0.0003315,5]
[361833322,1747827055000,-420.0,0.0003315,5]
[361833323,1747827055011,-566.38,0.0003315,5]
[361833324,1747827055020,-908.79,0.0003315,5]
[361833325,1747827055029,-455.00221453,0.0003315,5]
[361833326,1747827055040,-420.0,0.0003315,5]
[361833327,1747827055051,-420.0,0.0003315,5]
[361833328,1747827055062,-420.0,0.0003315,5]
[361833329,1747827055073,-470.13,0.0003315,5]
[361833330,1747827055084,-420.0,0.0003315,5]
[361833331,1747827055096,-420.0,0.0003315,5]
[361833332,1747827055108,-420.0,0.0003315,5]
[361833333,1747827055118,-684.18,0.0003315,5]
[361833334,1747827055129,-420.0,0.0003315,5]
[361833335,1747827055140,-420.0,0.0003315,5]
[361833336,1747827055150,-420.0,0.0003315,5]
[361833337,1747827055161,-511.84,0.0003315,5]
[361833338,1747827055171,-420.0,0.0003315,5]
[361833339,1747827055182,-420.0,0.0003315,5]
[361833340,1747827055193,-420.0,0.0003315,5]
[361833341,1747827055203,-420.0,0.0003315,5]
[361833342,1747827055214,-4969.67,0.0003315,5]
[361833343,1747827055224,-352.1086783,0.0003315,5]
[361833344,1747827055234,-1780.73,0.0003315,5]
[361833345,1747827055245,-457.64571207,0.0003315,5]
[361833346,1747827055256,-420.0,0.0003315,5]
[361833347,1747827055266,-2063.59,0.0003315,5]
[361833348,1747827055275,-420.0,0.0003315,5]
[361833349,1747827055285,-866.09,0.0003315,5]
[361833350,1747827055295,-420.0,0.0003315,5]
[361833351,1747827055304,-420.0,0.0003315,5]
[361833352,1747827055315,-420.0,0.0003315,5]
[361833353,1747827055324,-420.0,0.0003315,5]
[361833354,1747827055334,-486.15,0.0003315,5]
[361833355,1747827055343,-420.0,0.0003315,5]
[361833356,1747827055352,-420.0,0.0003315,5]
[361833357,1747827055362,-593.02,0.0003315,5]
[361833358,1747827055371,-420.0,0.0003315,5]
[361833359,1747827055381,-1691.23,0.0003315,5]
[361833360,1747827055391,-823.81,0.0003315,5]
[361833361,1747827055401,-1222.13,0.0003315,5]
[361833362,1747827055411,-420.0,0.0003315,5]
[361833363,1747827055421,-632.72,0.0003315,5]
[361833364,1747827055431,-420.0,0.0003315,5]
[361833365,1747827055442,-420.0,0.0003315,5]
[361833366,1747827055452,-1212.6,0.0003315,5]
[361833367,1747827055462,-420.0,0.0003315,5]
[361833368,1747827055471,-899.54,0.0003315,5]
[361833369,1747827055480,-420.0,0.0003315,5]
[361833370,1747827055490,-553.14,0.0003315,5]
[361833371,1747827055500,-420.0,0.0003315,5]
[361833372,1747827055509,-420.0,0.0003315,5]
[361833373,1747827055519,-420.0,0.0003315,5]
[361833374,1747827055528,-14631.66,0.0003315,5]
[361833375,1747827055538,-420.0,0.0003315,5]
[361833376,1747827055548,-2455.33,0.0003315,5]
[361833377,1747827055557,-687.17,0.0003315,5]
[361833378,1747827055568,-240.99,0.0003315,5]
[361833379,1747827055577,-510.0,0.0003315,5]
[361833380,1747827055587,-1819.43,0.0003315,5]
[361833381,1747827055597,-737.01,0.0003315,5]
[361833382,1747827055607,-570.3,0.0003315,5]
[361833383,1747827055616,-3896.68,0.0003315,5]
[361833384,1747827055626,-870.6435369,0.0003315,5]
[361833385,1747827055636,-420.0,0.0003315,5]
[361833386,1747827055645,-420.0,0.0003315,5]
[361833387,1747827055655,-420.0,0.0003315,5]
[361833388,1747827055665,-539.51,0.0003315,5]
[361833389,1747827055675,-1414.29,0.0003315,5]
[361833390,1747827055684,-420.0,0.0003315,5]
[361833391,1747827055694,-420.0,0.0003315,5]
[361833392,1747827055707,-3151.73,0.0003315,5]
[361833393,1747827055717,-420.0,0.0003315,5]
[361833394,1747827055727,-14144.26,0.0003315,5]
[361833395,1747827055737,-420.0,0.0003315,5]
[361833396,1747827055747,-420.0,0.0003315,5]
[361833397,1747827055756,-8547.26,0.0003315,5]
[361833398,1747827055766,-264.74,0.0003315,5]
[361833399,1747827055776,-420.0,0.0003315,5]
[361833400,1747827055786,-420.0,0.0003315,5]
[361833401,1747827055798,-4415.45,0.0003315,5]
[361833402,1747827055808,-1230.64,0.0003315,5]
[361833403,1747827055819,-555.55,0.0003315,5]
[361833404,1747827055829,-1703.83,0.0003315,5]
[361833405,1747827055839,-420.0,0.0003315,5]
[361833406,1747827055848,-420.0,0.0003315,5]
[361833407,1747827055858,-6937.33,0.0003315,5]
[361833408,1747827055868,-256.46830162,0.0003315,5]
[361833409,1747827055877,-319.09100002,0.0003315,5]
[361833410,1747827055887,-420.0,0.0003315,5]
[361833411,1747827055897,-420.0,0.0003315,5]
[361833412,1747827055907,-420.0,0.0003315,5]
[361833413,1747827055917,-420.0,0.0003315,5]
[361833414,1747827055927,-15406.07,0.0003315,5]
[361833415,1747827055938,-420.0,0.0003315,5]
[361833416,1747827055948,-634.69,0.0003315,5]
[361833417,1747827055959,-257.18165828,0.0003315,5]
[361833418,1747827055969,-1151.78,0.0003315,5]
[361833419,1747827055979,-420.0,0.0003315,5]
[361833420,1747827055989,-420.0,0.0003315,5]
[361833421,1747827055999,-29896.52,0.0003315,5]
[361833422,1747827056009,-7119.22,0.0003315,5]
[361833423,1747827056019,-4554.6,0.0003315,5]
[361833424,1747827056029,-453.24,0.0003315,5]
[361833425,1747827056039,-923.2,0.0003315,5]
[361833426,1747827056048,-420.0,0.0003315,5]
[361833427,1747827056058,-1187.43,0.0003315,5]
[361833428,1747827056068,-735.32,0.0003315,5]
[361833429,1747827056078,-1687.56,0.0003315,5]
[361833430,1747827056088,-420.0,0.0003315,5]
[361833431,1747827056097,-422.99,0.0003315,5]
[361833432,1747827056107,-1027.32,0.0003315,5]
[361833433,1747827056117,-420.0,0.0003315,5]
[361833434,1747827056126,-420.0,0.0003315,5]
[361833435,1747827056136,-420.0,0.0003315,5]
[361833436,1747827056146,-420.0,0.0003315,5]
[361833437,1747827056156,-420.0,0.0003315,5]
[361833438,1747827056166,-420.0,0.0003315,5]
[361833439,1747827056176,-2411.69,0.0003315,5]
[361833440,1747827056185,-404.07812233,0.0003315,5]
[361833441,1747827056195,-420.0,0.0003315,5]
[361833442,1747827056206,-1168.04,0.0003315,5]
[361833443,1747827056216,-420.0,0.0003315,5]
[361833444,1747827056226,-420.0,0.0003315,5]
[361833445,1747827056236,-2041.94,0.0003315,5]
[361833446,1747827056247,-1081.8,0.0003315,5]
[361833447,1747827056257,-987.93,0.0003315,5]
[361833448,1747827056267,-1021.78,0.0003315,5]
[361833449,1747827056277,-195.91276985,0.0003315,5]
[361833450,1747827056288,-990.58,0.0003315,5]
[361833451,1747827056297,-332.00014866,0.0003315,5]
[361833452,1747827056307,-836.48,0.0003315,5]
[361833453,1747827056318,-420.0,0.0003315,5]
[361833454,1747827056328,-420.0,0.0003315,5]
[361833455,1747827056338,-420.0,0.0003315,5]
[361833456,1747827056348,-1734.22,0.0003315,5]
[361833457,1747827056358,-420.0,0.0003315,5]
[361833458,1747827056369,-3677.77,0.0003315,5]
[361833459,1747827056379,-420.0,0.0003315,5]
[361833460,1747827056388,-1825.28,0.0003315,5]
[361833461,1747827056399,-3633.83,0.0003315,5]
[361833462,1747827056409,-420.0,0.0003315,5]
[361833463,1747827056419,-420.0,0.0003315,5]
[361833464,1747827056429,-593.9,0.0003315,5]
[361833465,1747827056439,-420.0,0.0003315,5]
[361833466,1747827056449,-420.0,0.0003315,5]
[361833467,1747827056459,-5549.41,0.0003315,5]
[361833468,1747827056469,-420.0,0.0003315,5]
[361833469,1747827056479,-420.0,0.0003315,5]
[361833470,1747827056489,-420.0,0.0003315,5]
[361833471,1747827056499,-420.0,0.0003315,5]
[361833472,1747827056509,-420.0,0.0003315,5]
[361833473,1747827056518,-638.11,0.0003315,2]
[361833474,1747827056528,-2012.33,0.0003315,5]
[361833475,1747827056538,-420.0,0.0003315,5]
[361833476,1747827056548,-420.0,0.0003315,5]
[361833477,1747827056560,-2891.24,0.0003315,5]
[361833478,1747827056570,-420.0,0.0003315,5]
[361833479,1747827056580,-420.0,0.0003315,5]
[361833480,1747827056590,-420.0,0.0003315,5]
[361833481,1747827056600,-420.0,0.0003315,5]
[361833482,1747827056609,-420.0,0.0003315,5]
[361833483,1747827056619,-492.76048553,0.0003315,5]
[361833484,1747827056630,-420.0,0.0003315,5]
[361833485,1747827056639,-515.5826887,0.0003315,5]
[361833486,1747827056649,-3346.56,0.0003315,5]
[361833487,1747827056660,-709.25,0.0003315,5]
[361833488,1747827056671,-420.0,0.0003315,5]
[361833489,1747827056681,-420.0,0.0003315,5]
[361833490,1747827056691,-420.63,0.0003315,5]
[361833491,1747827056702,-420.0,0.0003315,5]
[361833492,1747827056714,-420.0,0.0003315,5]
[361833493,1747827056725,-420.0,0.0003315,5]
[361833494,1747827056734,-420.0,0.0003315,5]
[361833495,1747827056747,-1095.31,0.0003315,5]
[361833496,1747827056757,-420.0,0.0003315,5]
[361833497,1747827056767,-316.06456391,0.0003315,5]
[361833498,1747827056777,-470.99,0.0003315,5]
[361833499,1747827056790,-451.82,0.0003315,5]
[361833500,1747827056800,-426.33,0.0003315,5]
[361833501,1747827056810,-1236.71,0.0003315,5]
[361833502,1747827056820,-420.0,0.0003315,5]
[361833503,1747827056830,-2495.64,0.0003315,5]
[361833504,1747827056840,-420.0,0.0003315,5]
[361833505,1747827056850,-420.0,0.0003315,5]
[361833506,1747827056859,-420.0,0.0003315,5]
[361833507,1747827056870,-420.0,0.0003315,5]
[361833508,1747827056887,-420.0,0.0003315,5]
[361833509,1747827056897,-225.79005947,0.0003315,5]
[361833510,1747827056908,-1160.66,0.0003315,5]
[361833511,1747827056918,-420.0,0.0003315,5]
[361833512,1747827056929,-420.0,0.0003315,5]
[361833513,1747827056939,-420.0,0.0003315,5]
[361833514,1747827056950,-420.0,0.0003315,5]
[361833515,1747827056960,-420.0,0.0003315,5]
[361833516,1747827056970,-420.0,0.0003315,5]
[361833517,1747827056980,-4059.65,0.0003315,5]
[361833518,1747827056990,-420.0,0.0003315,5]
[361833519,1747827057000,-318.98,0.0003315,5]
[361833520,1747827057011,-561.7,0.0003315,5]
[361833521,1747827057021,-420.0,0.0003315,5]